[Event "Early-Titled-Tuesday-Blitz-February-27-2024"]
[Site "Chess.com"]
[Date "2024.02.27"]
[Round "2"]
[White "MatthewG-p4p"]
[Black "Roman_Ovetchkin"]
[Result "1-0"]
[WhiteElo "2894"]
[BlackElo "2597"]
[TimeControl "180+1"]
[EndTime "8:17:07 PST"]
[Termination "MatthewG-p4p won on time"]

1. e4 {[%clk 0:02:56.7]} 1... e5 {[%clk 0:02:57.3]} 2. Nf3 {[%clk 0:02:56.7]}
2... Nc6 {[%clk 0:02:57]} 3. d4 {[%clk 0:02:57]} 3... exd4 {[%clk 0:02:56.3]} 4.
c3 {[%clk 0:02:57.7]} 4... d5 {[%clk 0:02:52.6]} 5. exd5 {[%clk 0:02:57.8]} 5...
Qxd5 {[%clk 0:02:52.2]} 6. cxd4 {[%clk 0:02:58.5]} 6... Bg4 {[%clk 0:02:51]} 7.
Be2 {[%clk 0:02:57.4]} 7... Bb4+ {[%clk 0:02:51.4]} 8. Nc3 {[%clk 0:02:57.5]}
8... Bxf3 {[%clk 0:02:42.7]} 9. Bxf3 {[%clk 0:02:57.7]} 9... Qc4 {[%clk
0:02:43]} 10. Be2 {[%clk 0:02:06.8]} 10... Bxc3+ {[%clk 0:02:26.3]} 11. bxc3
{[%clk 0:02:07.1]} 11... Qxc3+ {[%clk 0:02:26.5]} 12. Bd2 {[%clk 0:02:07.9]}
12... Qxd4 {[%clk 0:02:26.5]} 13. Rb1 {[%clk 0:01:48.2]} 13... Rd8 {[%clk
0:01:48.3]} 14. Qc2 {[%clk 0:01:45]} 14... Nge7 {[%clk 0:01:39.8]} 15. Bc3
{[%clk 0:01:20.9]} 15... Qd5 {[%clk 0:01:26.2]} 16. O-O {[%clk 0:01:15.5]} 16...
O-O {[%clk 0:01:20.5]} 17. Bf3 {[%clk 0:01:12.6]} 17... Qc4 {[%clk 0:01:11.9]}
18. Qb2 {[%clk 0:00:57.1]} 18... Nf5 {[%clk 0:00:40.5]} 19. Rfc1 {[%clk
0:00:55.4]} 19... Nfd4 {[%clk 0:00:37.1]} 20. Bxd4 {[%clk 0:00:46.8]} 20... Qxd4
{[%clk 0:00:36.7]} 21. Qxb7 {[%clk 0:00:47.5]} 21... Ne5 {[%clk 0:00:36.6]} 22.
Be2 {[%clk 0:00:41.8]} 22... Nd3 {[%clk 0:00:19.3]} 23. Rf1 {[%clk 0:00:32.2]}
23... Nf4 {[%clk 0:00:16.5]} 24. Bf3 {[%clk 0:00:32.8]} 24... g6 {[%clk
0:00:07]} 25. Qxc7 {[%clk 0:00:31.8]} 25... Nd3 {[%clk 0:00:04]} 26. Rbd1 {[%clk
0:00:29.2]} 26... Rfe8 {[%clk 0:00:04.1]} 27. h3 {[%clk 0:00:23.7]} 27... Qb6
{[%clk 0:00:03]} 28. Qc3 {[%clk 0:00:16.5]} 28... Ne5 {[%clk 0:00:02.7]} 29. Be2
{[%clk 0:00:16.2]} 29... Qf6 {[%clk 0:00:01.8]} 30. Rxd8 {[%clk 0:00:14.1]}
30... Rxd8 {[%clk 0:00:01.3]} 31. Re1 {[%clk 0:00:11.8]} 1-0

[Event "Early-Titled-Tuesday-Blitz-February-27-2024"]
[Site "Chess.com"]
[Date "2024.02.27"]
[Round "2"]
[White "mjray79"]
[Black "TitarovVasiliYouTube"]
[Result "1-0"]
[WhiteElo "2756"]
[BlackElo "2521"]
[TimeControl "180+1"]
[EndTime "8:17:07 PST"]
[Termination "mjray79 won on time"]

1. e4 {[%clk 0:03:00.9]} 1... c5 {[%clk 0:03:00]} 2. c3 {[%clk 0:03:00]} 2...
Nf6 {[%clk 0:02:58.6]} 3. e5 {[%clk 0:02:59.6]} 3... Nd5 {[%clk 0:02:59.3]} 4.
Nf3 {[%clk 0:02:58.9]} 4... d6 {[%clk 0:02:59.3]} 5. exd6 {[%clk 0:02:58]} 5...
Qxd6 {[%clk 0:03:00.2]} 6. Na3 {[%clk 0:02:51]} 6... Nc6 {[%clk 0:02:55.1]} 7.
Be2 {[%clk 0:02:46.4]} 7... a6 {[%clk 0:02:36.8]} 8. d4 {[%clk 0:02:42.3]} 8...
cxd4 {[%clk 0:02:36.5]} 9. Nxd4 {[%clk 0:02:41.6]} 9... e6 {[%clk 0:02:20.9]}
10. Nc4 {[%clk 0:02:39.8]} 10... Qc7 {[%clk 0:02:20]} 11. Nxc6 {[%clk
0:02:36.2]} 11... Qxc6 {[%clk 0:02:18.8]} 12. O-O {[%clk 0:02:36.1]} 12... Be7
{[%clk 0:02:16.8]} 13. Ne5 {[%clk 0:02:23.7]} 13... Qc7 {[%clk 0:02:14.5]} 14.
Qa4+ {[%clk 0:02:23.7]} 14... Bd7 {[%clk 0:02:06.9]} 15. Nxd7 {[%clk 0:02:22.9]}
15... Qxd7 {[%clk 0:02:07.8]} 16. Qxd7+ {[%clk 0:02:18.2]} 16... Kxd7 {[%clk
0:02:08.7]} 17. Rd1 {[%clk 0:02:18.7]} 17... Kc8 {[%clk 0:01:32.2]} 18. c4
{[%clk 0:02:08.8]} 18... Nb4 {[%clk 0:01:31.9]} 19. Bd2 {[%clk 0:02:08.5]} 19...
Rd8 {[%clk 0:01:12.8]} 20. Bc3 {[%clk 0:02:05.7]} 20... f6 {[%clk 0:01:07.3]}
21. a3 {[%clk 0:02:02.9]} 21... Nc6 {[%clk 0:01:06.9]} 22. b4 {[%clk 0:01:58.5]}
22... e5 {[%clk 0:01:05.4]} 23. Bf3 {[%clk 0:01:53.1]} 23... Kc7 {[%clk
0:01:04.1]} 24. Bd5 {[%clk 0:01:52.6]} 24... Rd7 {[%clk 0:00:41.3]} 25. Rac1
{[%clk 0:01:37.6]} 25... Kb6 {[%clk 0:00:22.3]} 26. c5+ {[%clk 0:01:34.9]} 26...
Kc7 {[%clk 0:00:22.2]} 27. Be6 {[%clk 0:01:18.7]} 27... Rxd1+ {[%clk 0:00:21.6]}
28. Rxd1 {[%clk 0:01:19.6]} 28... Rd8 {[%clk 0:00:22.3]} 29. Rxd8 {[%clk
0:01:19.3]} 29... Kxd8 {[%clk 0:00:23.2]} 30. Kf1 {[%clk 0:01:16.8]} 30... Nd4
{[%clk 0:00:22.3]} 31. Bxd4 {[%clk 0:01:16.5]} 31... exd4 {[%clk 0:00:23.2]} 32.
Ke2 {[%clk 0:01:16.9]} 32... a5 {[%clk 0:00:21.1]} 33. Kd3 {[%clk 0:01:16.5]}
33... axb4 {[%clk 0:00:21.9]} 34. axb4 {[%clk 0:01:17.4]} 34... Kc7 {[%clk
0:00:22]} 35. Kxd4 {[%clk 0:01:17.3]} 35... b6 {[%clk 0:00:20.4]} 36. Kd5 {[%clk
0:01:13.2]} 36... bxc5 {[%clk 0:00:20.4]} 37. bxc5 {[%clk 0:01:14.1]} 37... Bf8
{[%clk 0:00:16.5]} 38. Bf5 {[%clk 0:01:13.4]} 38... h6 {[%clk 0:00:15]} 39. c6
{[%clk 0:01:12.9]} 39... Bd6 {[%clk 0:00:14.4]} 40. h3 {[%clk 0:01:08.5]} 40...
Bb4 {[%clk 0:00:11]} 41. Be4 {[%clk 0:01:06.8]} 41... Be1 {[%clk 0:00:10.7]} 42.
f3 {[%clk 0:01:07]} 42... h5 {[%clk 0:00:08]} 43. Ke6 {[%clk 0:01:07.3]} 43...
Bd2 {[%clk 0:00:07.2]} 44. Kf7 {[%clk 0:01:04.7]} 44... Bh6 {[%clk 0:00:07]} 45.
h4 {[%clk 0:01:05.3]} 45... Kd6 {[%clk 0:00:04.6]} 46. Kg6 {[%clk 0:01:05.2]}
46... Kc7 {[%clk 0:00:03]} 47. Kxh5 {[%clk 0:01:05.2]} 47... Bf4 {[%clk
0:00:02.1]} 48. Kg6 {[%clk 0:01:03.8]} 48... Bh6 {[%clk 0:00:02.4]} 49. g4
{[%clk 0:01:04.2]} 49... Kd6 {[%clk 0:00:01.8]} 50. g5 {[%clk 0:01:04.2]} 50...
fxg5 {[%clk 0:00:02.7]} 51. hxg5 {[%clk 0:01:05.1]} 1-0

[Event "Early-Titled-Tuesday-Blitz-February-27-2024"]
[Site "Chess.com"]
[Date "2024.02.27"]
[Round "2"]
[White "Suleyman_Chess06"]
[Black "vladoboch"]
[Result "1-0"]
[WhiteElo "2724"]
[BlackElo "2432"]
[TimeControl "180+1"]
[EndTime "8:17:08 PST"]
[Termination "Suleyman_Chess06 won by resignation"]

1. Nf3 {[%clk 0:03:00.9]} 1... d5 {[%clk 0:02:59.7]} 2. g3 {[%clk 0:03:00.8]}
2... Bg4 {[%clk 0:02:52.1]} 3. Bg2 {[%clk 0:03:00.8]} 3... c6 {[%clk 0:02:51.7]}
4. O-O {[%clk 0:03:00.6]} 4... Nd7 {[%clk 0:02:50.1]} 5. h3 {[%clk 0:03:01]}
5... Bh5 {[%clk 0:02:48.5]} 6. d4 {[%clk 0:03:01.8]} 6... Ngf6 {[%clk
0:02:46.7]} 7. c4 {[%clk 0:03:02.6]} 7... e6 {[%clk 0:02:46]} 8. cxd5 {[%clk
0:03:03.2]} 8... exd5 {[%clk 0:02:46.2]} 9. Qb3 {[%clk 0:03:03.9]} 9... Qb6
{[%clk 0:02:46.3]} 10. Qe3+ {[%clk 0:03:04.6]} 10... Be7 {[%clk 0:02:44.9]} 11.
Nh4 {[%clk 0:03:05.4]} 11... Bg6 {[%clk 0:02:39.4]} 12. Nc3 {[%clk 0:03:05.4]}
12... Qd8 {[%clk 0:02:31.1]} 13. f4 {[%clk 0:03:05.4]} 13... O-O {[%clk
0:02:13.1]} 14. f5 {[%clk 0:03:04]} 14... Bh5 {[%clk 0:02:13.5]} 15. g4 {[%clk
0:03:03.4]} 15... Bxg4 {[%clk 0:02:00.8]} 16. hxg4 {[%clk 0:03:03.5]} 16... Nxg4
{[%clk 0:02:01.2]} 17. Qg3 {[%clk 0:03:03.8]} 17... Bxh4 {[%clk 0:01:51.7]} 18.
Qxg4 {[%clk 0:03:03]} 18... Re8 {[%clk 0:01:46.8]} 19. Bh6 {[%clk 0:02:40.3]}
19... Bf6 {[%clk 0:01:42.9]} 20. e4 {[%clk 0:02:40]} 20... Bxd4+ {[%clk
0:01:42.2]} 21. Kh1 {[%clk 0:02:40.5]} 21... Kh8 {[%clk 0:01:36.7]} 22. exd5
{[%clk 0:02:15.2]} 22... Bxc3 {[%clk 0:01:31.2]} 23. dxc6 {[%clk 0:02:11.2]}
23... gxh6 {[%clk 0:01:23.5]} 24. bxc3 {[%clk 0:01:51.5]} 24... Ne5 {[%clk
0:01:20.1]} 25. Qh3 {[%clk 0:01:43.4]} 25... bxc6 {[%clk 0:01:16.1]} 26. Qxh6
{[%clk 0:01:43.2]} 26... Rg8 {[%clk 0:01:04.9]} 27. Rad1 {[%clk 0:01:38.5]}
27... Qg5 {[%clk 0:00:40.3]} 28. Qxg5 {[%clk 0:01:37.8]} 28... Rxg5 {[%clk
0:00:41.2]} 29. f6 {[%clk 0:01:31]} 29... Rag8 {[%clk 0:00:31.6]} 30. Rd2 {[%clk
0:01:30.7]} 30... h6 {[%clk 0:00:25.1]} 31. Rf4 {[%clk 0:01:26.8]} 31... h5
{[%clk 0:00:16.8]} 32. Re2 {[%clk 0:01:18.6]} 32... Kh7 {[%clk 0:00:15.5]} 33.
Rfe4 {[%clk 0:01:14.2]} 33... Ng4 {[%clk 0:00:13.6]} 34. Re7 {[%clk 0:01:14.3]}
34... Kg6 {[%clk 0:00:09.3]} 35. Rxa7 {[%clk 0:01:14.5]} 35... Nxf6 {[%clk
0:00:08.8]} 36. Ra6 {[%clk 0:01:08]} 36... Rc5 {[%clk 0:00:06.6]} 37. Rxc6
{[%clk 0:01:07.4]} 37... Rxc6 {[%clk 0:00:05.5]} 38. Bxc6 {[%clk 0:01:08.3]}
38... Rc8 {[%clk 0:00:05.2]} 39. Rg2+ {[%clk 0:01:06.8]} 39... Ng4 {[%clk
0:00:04.3]} 40. Bd7 {[%clk 0:01:03.1]} 40... Rxc3 {[%clk 0:00:03.3]} 41. Bxg4
{[%clk 0:01:03.8]} 41... hxg4 {[%clk 0:00:03.3]} 42. Rxg4+ {[%clk 0:01:04.7]}
42... Kf5 {[%clk 0:00:03.7]} 43. Ra4 {[%clk 0:01:05.4]} 43... Rc2 {[%clk
0:00:02.6]} 44. Kg1 {[%clk 0:01:05.5]} 44... Ke5 {[%clk 0:00:03.1]} 45. Ra5+
{[%clk 0:01:03.4]} 45... Ke6 {[%clk 0:00:03.2]} 46. Ra6+ {[%clk 0:01:03.7]}
46... Ke5 {[%clk 0:00:03.7]} 47. Ra5+ {[%clk 0:01:03.5]} 47... Ke6 {[%clk
0:00:04.1]} 48. a4 {[%clk 0:01:03.7]} 48... f5 {[%clk 0:00:03.9]} 49. Ra8 {[%clk
0:01:03.8]} 49... f4 {[%clk 0:00:04.3]} 50. a5 {[%clk 0:01:03.8]} 50... Ra2
{[%clk 0:00:04.5]} 51. a6 {[%clk 0:01:04.2]} 51... f3 {[%clk 0:00:04.7]} 52. a7
{[%clk 0:01:04.2]} 52... Ke5 {[%clk 0:00:05.4]} 53. Re8+ {[%clk 0:01:03.8]}
53... Kf4 {[%clk 0:00:05.2]} 54. a8=Q {[%clk 0:01:04.1]} 54... Rxa8 {[%clk
0:00:04]} 55. Rxa8 {[%clk 0:01:05]} 55... Kg3 {[%clk 0:00:04.2]} 56. Ra2 {[%clk
0:01:05.4]} 1-0

[Event "Early-Titled-Tuesday-Blitz-February-27-2024"]
[Site "Chess.com"]
[Date "2024.02.27"]
[Round "2"]
[White "LimeInTheCoconut"]
[Black "BeardedNM"]
[Result "1-0"]
[WhiteElo "2501"]
[BlackElo "2217"]
[TimeControl "180+1"]
[EndTime "8:17:09 PST"]
[Termination "LimeInTheCoconut won by checkmate"]

1. b3 {[%clk 0:02:56]} 1... e5 {[%clk 0:02:59.2]} 2. Bb2 {[%clk 0:02:55.7]} 2...
Nc6 {[%clk 0:02:59.6]} 3. e3 {[%clk 0:02:55]} 3... Nf6 {[%clk 0:03:00.1]} 4. Bb5
{[%clk 0:02:54.1]} 4... Bd6 {[%clk 0:03:00.5]} 5. Na3 {[%clk 0:02:49.3]} 5...
Na5 {[%clk 0:03:00.5]} 6. Be2 {[%clk 0:02:42.7]} 6... a6 {[%clk 0:02:59]} 7. Nf3
{[%clk 0:02:36.3]} 7... Qe7 {[%clk 0:02:54]} 8. Nb1 {[%clk 0:02:24.3]} 8... Nc6
{[%clk 0:02:32.6]} 9. d4 {[%clk 0:02:13.5]} 9... e4 {[%clk 0:02:28.8]} 10. Nfd2
{[%clk 0:02:13]} 10... h5 {[%clk 0:02:13.9]} 11. a3 {[%clk 0:02:04.3]} 11... h4
{[%clk 0:02:05.7]} 12. c4 {[%clk 0:02:00.9]} 12... h3 {[%clk 0:01:47.7]} 13. g4
{[%clk 0:01:49.1]} 13... b6 {[%clk 0:01:21.7]} 14. Nc3 {[%clk 0:01:48.4]} 14...
Bb7 {[%clk 0:01:14.6]} 15. g5 {[%clk 0:01:46.3]} 15... Nh7 {[%clk 0:01:05.7]}
16. Ndxe4 {[%clk 0:01:40.8]} 16... Nxg5 {[%clk 0:00:59.8]} 17. Nxd6+ {[%clk
0:01:09.5]} 17... Qxd6 {[%clk 0:00:59.6]} 18. d5 {[%clk 0:01:08.1]} 18... Ne7
{[%clk 0:00:43.6]} 19. Qd4 {[%clk 0:01:02.9]} 19... O-O-O {[%clk 0:00:32]} 20.
O-O-O {[%clk 0:00:59.4]} 20... f6 {[%clk 0:00:16.4]} 21. Qg4 {[%clk 0:00:46.9]}
21... Ng6 {[%clk 0:00:11.9]} 22. f4 {[%clk 0:00:43.3]} 22... Rh4 {[%clk
0:00:08.6]} 23. Qg1 {[%clk 0:00:40.9]} 23... Nxf4 {[%clk 0:00:06.3]} 24. exf4
{[%clk 0:00:38.6]} 24... Qxf4+ {[%clk 0:00:06.7]} 25. Kb1 {[%clk 0:00:35]} 25...
Re8 {[%clk 0:00:07.2]} 26. Bd3 {[%clk 0:00:31.6]} 26... Nf3 {[%clk 0:00:06.3]}
27. Qf2 {[%clk 0:00:27]} 27... c6 {[%clk 0:00:03.1]} 28. Ka2 {[%clk 0:00:24.1]}
28... cxd5 {[%clk 0:00:03.3]} 29. Nxd5 {[%clk 0:00:24.1]} 29... Bxd5 {[%clk
0:00:03.1]} 30. cxd5 {[%clk 0:00:25]} 30... Re3 {[%clk 0:00:01.6]} 31. Bxa6+
{[%clk 0:00:22.8]} 31... Kb8 {[%clk 0:00:01.6]} 32. Rhf1 {[%clk 0:00:17.8]}
32... Rg4 {[%clk 0:00:01.6]} 33. Qc2 {[%clk 0:00:14.3]} 33... Rg2 {[%clk
0:00:01.8]} 34. Qc8+ {[%clk 0:00:14]} 34... Ka7 {[%clk 0:00:02.3]} 35. Qb7#
{[%clk 0:00:14.9]} 1-0

[Event "Early-Titled-Tuesday-Blitz-February-27-2024"]
[Site "Chess.com"]
[Date "2024.02.27"]
[Round "2"]
[White "Baronessa08"]
[Black "Szparu"]
[Result "0-1"]
[WhiteElo "2538"]
[BlackElo "2765"]
[TimeControl "180+1"]
[EndTime "8:17:12 PST"]
[Termination "Szparu won by resignation"]

1. Nf3 {[%clk 0:03:00.9]} 1... c5 {[%clk 0:02:54.5]} 2. b3 {[%clk 0:02:59.8]}
2... Nc6 {[%clk 0:02:48.1]} 3. Bb2 {[%clk 0:02:59.7]} 3... d5 {[%clk 0:02:43.8]}
4. e3 {[%clk 0:02:59.9]} 4... f6 {[%clk 0:02:41.7]} 5. d4 {[%clk 0:02:51.7]}
5... cxd4 {[%clk 0:02:40.3]} 6. exd4 {[%clk 0:02:44.1]} 6... Bg4 {[%clk
0:02:39.6]} 7. c4 {[%clk 0:02:36.1]} 7... e6 {[%clk 0:02:39.2]} 8. Bd3 {[%clk
0:02:16.9]} 8... Bb4+ {[%clk 0:02:37.7]} 9. Nbd2 {[%clk 0:02:12.6]} 9... Bxf3
{[%clk 0:02:16.2]} 10. Qxf3 {[%clk 0:02:10.1]} 10... Bxd2+ {[%clk 0:02:15.9]}
11. Kxd2 {[%clk 0:02:07.1]} 11... dxc4 {[%clk 0:02:11.3]} 12. Bxc4 {[%clk
0:01:45.4]} 12... Nxd4 {[%clk 0:02:09.5]} 13. Qd3 {[%clk 0:01:16.8]} 13... e5
{[%clk 0:02:08.6]} 14. Bxd4 {[%clk 0:01:11.8]} 14... Qxd4 {[%clk 0:01:45.4]} 15.
Qxd4 {[%clk 0:01:10.8]} 15... exd4 {[%clk 0:01:46.3]} 16. Rhe1+ {[%clk 0:01:11]}
16... Ne7 {[%clk 0:01:38]} 17. Re4 {[%clk 0:01:05.4]} 17... Kd7 {[%clk
0:01:34.3]} 18. Rxd4+ {[%clk 0:01:01.5]} 18... Kc7 {[%clk 0:01:34.4]} 19. Re1
{[%clk 0:00:34.2]} 19... Nc6 {[%clk 0:01:34.6]} 20. Rg4 {[%clk 0:00:34.3]} 20...
Rad8+ {[%clk 0:01:34]} 21. Kc1 {[%clk 0:00:33.4]} 21... Rd7 {[%clk 0:01:34.4]}
22. f4 {[%clk 0:00:25.5]} 22... Nd4 {[%clk 0:01:30.1]} 23. h4 {[%clk 0:00:20.3]}
23... b5 {[%clk 0:01:27.4]} 24. Bf1 {[%clk 0:00:15.9]} 24... Kb6 {[%clk
0:01:26.5]} 25. Kb2 {[%clk 0:00:15.7]} 25... Rc8 {[%clk 0:01:18]} 26. Rc1 {[%clk
0:00:15.6]} 26... Rxc1 {[%clk 0:01:18.6]} 27. Kxc1 {[%clk 0:00:16.5]} 27... Nf5
{[%clk 0:01:19.1]} 28. Be2 {[%clk 0:00:10.1]} 28... h5 {[%clk 0:01:01.3]} 29.
Rg6 {[%clk 0:00:10]} 29... Nxh4 {[%clk 0:01:01.9]} 30. Rg3 {[%clk 0:00:10.6]}
30... Nf5 {[%clk 0:01:02.2]} 31. Rh3 {[%clk 0:00:08.4]} 31... g6 {[%clk
0:01:01.8]} 32. g4 {[%clk 0:00:07.2]} 32... hxg4 {[%clk 0:00:59.9]} 33. Bxg4
{[%clk 0:00:08.1]} 33... Rc7+ {[%clk 0:01:00.7]} 34. Kd2 {[%clk 0:00:07.8]}
34... Nd6 {[%clk 0:00:53.7]} 35. Rh6 {[%clk 0:00:06.3]} 35... Rg7 {[%clk
0:00:53.6]} 36. Bf3 {[%clk 0:00:05.9]} 36... Nf5 {[%clk 0:00:53.3]} 37. Rh8
{[%clk 0:00:05.9]} 37... Rd7+ {[%clk 0:00:52.3]} 38. Kc3 {[%clk 0:00:05.7]}
38... Rc7+ {[%clk 0:00:50.2]} 39. Kd3 {[%clk 0:00:05.3]} 39... Rd7+ {[%clk
0:00:50]} 40. Kc3 {[%clk 0:00:05.7]} 40... a5 {[%clk 0:00:42.8]} 41. Rb8+ {[%clk
0:00:04.8]} 41... Kc5 {[%clk 0:00:39]} 42. Rc8+ {[%clk 0:00:04.5]} 42... Kd6
{[%clk 0:00:39.5]} 43. Rb8 {[%clk 0:00:04.6]} 43... b4+ {[%clk 0:00:39.7]} 44.
Kd3 {[%clk 0:00:04]} 44... Kc7+ {[%clk 0:00:38.1]} 0-1

[Event "Early-Titled-Tuesday-Blitz-February-27-2024"]
[Site "Chess.com"]
[Date "2024.02.27"]
[Round "2"]
[White "FoxOnTheRun97"]
[Black "FairChess_on_YouTube"]
[Result "0-1"]
[WhiteElo "2659"]
[BlackElo "3108"]
[TimeControl "180+1"]
[EndTime "8:17:13 PST"]
[Termination "FairChess_on_YouTube won on time"]

1. d4 {[%clk 0:03:00.9]} 1... Nf6 {[%clk 0:02:59.3]} 2. Bg5 {[%clk 0:03:00.5]}
2... g6 {[%clk 0:02:57.8]} 3. Bxf6 {[%clk 0:03:00.6]} 3... exf6 {[%clk
0:02:58.7]} 4. e3 {[%clk 0:03:01]} 4... d5 {[%clk 0:02:58.6]} 5. g3 {[%clk
0:03:01.3]} 5... f5 {[%clk 0:02:58.1]} 6. Bg2 {[%clk 0:03:01.6]} 6... c6 {[%clk
0:02:58.7]} 7. Ne2 {[%clk 0:03:01.8]} 7... Nd7 {[%clk 0:02:59]} 8. Nd2 {[%clk
0:02:57.1]} 8... Nf6 {[%clk 0:02:58.6]} 9. c4 {[%clk 0:02:56.6]} 9... dxc4
{[%clk 0:02:58.9]} 10. Nxc4 {[%clk 0:02:56.4]} 10... Be6 {[%clk 0:02:59.2]} 11.
Qd3 {[%clk 0:02:28.9]} 11... Bb4+ {[%clk 0:02:49]} 12. Nc3 {[%clk 0:02:24.4]}
12... h5 {[%clk 0:02:47.6]} 13. h4 {[%clk 0:02:23.7]} 13... Ng4 {[%clk
0:02:44.9]} 14. O-O {[%clk 0:02:16.7]} 14... O-O {[%clk 0:02:41.8]} 15. Ne2
{[%clk 0:02:08.5]} 15... Bxc4 {[%clk 0:02:30.3]} 16. Qxc4 {[%clk 0:02:07.9]}
16... Bd6 {[%clk 0:02:31]} 17. Nf4 {[%clk 0:02:05.5]} 17... Kg7 {[%clk
0:02:26.3]} 18. d5 {[%clk 0:01:54.7]} 18... c5 {[%clk 0:02:25.6]} 19. Rac1
{[%clk 0:01:39.3]} 19... Qf6 {[%clk 0:02:24.7]} 20. Qc3 {[%clk 0:01:28.7]} 20...
b5 {[%clk 0:02:11.1]} 21. a4 {[%clk 0:01:24]} 21... bxa4 {[%clk 0:01:55.7]} 22.
Qxf6+ {[%clk 0:01:10.2]} 22... Nxf6 {[%clk 0:01:48.5]} 23. Ra1 {[%clk
0:01:09.5]} 23... Rfb8 {[%clk 0:01:47.7]} 24. Rfb1 {[%clk 0:00:59.3]} 24... Rb4
{[%clk 0:01:44.2]} 25. Nd3 {[%clk 0:00:57.1]} 25... Rc4 {[%clk 0:01:39.1]} 26.
Rc1 {[%clk 0:00:53.8]} 26... Rxc1+ {[%clk 0:01:37.4]} 27. Rxc1 {[%clk
0:00:54.7]} 27... Nd7 {[%clk 0:01:27]} 28. Bf3 {[%clk 0:00:43.4]} 28... Rc8
{[%clk 0:01:21.1]} 29. Ra1 {[%clk 0:00:20.5]} 29... Nb6 {[%clk 0:01:18.5]} 30.
Bd1 {[%clk 0:00:18.4]} 30... c4 {[%clk 0:01:18.3]} 31. Nf4 {[%clk 0:00:16.2]}
31... Rc5 {[%clk 0:01:05.6]} 32. Kf1 {[%clk 0:00:11.6]} 32... Rb5 {[%clk
0:01:03.2]} 33. Ra2 {[%clk 0:00:11]} 33... Rb4 {[%clk 0:01:03.6]} 34. Ke2 {[%clk
0:00:10.2]} 34... Be5 {[%clk 0:01:03.1]} 35. Kd2 {[%clk 0:00:06.8]} 35... Bxb2
{[%clk 0:01:01.8]} 36. Kc2 {[%clk 0:00:06.5]} 36... a3 {[%clk 0:01:01.5]} 37.
Be2 {[%clk 0:00:06.1]} 37... Na4 {[%clk 0:00:45.5]} 38. d6 {[%clk 0:00:05.5]}
38... Rb6 {[%clk 0:00:43.6]} 39. Bxc4 {[%clk 0:00:03.9]} 39... Rxd6 {[%clk
0:00:43]} 40. Nd5 {[%clk 0:00:01.7]} 40... Rc6 {[%clk 0:00:40.7]} 41. Kb3 {[%clk
0:00:01.6]} 41... Nc5+ {[%clk 0:00:40.7]} 42. Kb4 {[%clk 0:00:01.7]} 42... Ne4
{[%clk 0:00:41]} 43. Kb5 {[%clk 0:00:02]} 43... Rc5+ {[%clk 0:00:39.9]} 44. Kb4
{[%clk 0:00:01.9]} 44... a5+ {[%clk 0:00:40.5]} 45. Kb3 {[%clk 0:00:02.1]} 45...
Nd2+ {[%clk 0:00:41.1]} 0-1

[Event "Early-Titled-Tuesday-Blitz-February-27-2024"]
[Site "Chess.com"]
[Date "2024.02.27"]
[Round "2"]
[White "HanSchut"]
[Black "bulletteemo"]
[Result "0-1"]
[WhiteElo "2305"]
[BlackElo "2570"]
[TimeControl "180+1"]
[EndTime "8:17:14 PST"]
[Termination "bulletteemo won on time"]

1. e4 {[%clk 0:03:00.9]} 1... c5 {[%clk 0:02:56.9]} 2. Nf3 {[%clk 0:03:00.7]}
2... d5 {[%clk 0:02:57]} 3. exd5 {[%clk 0:02:59.1]} 3... Nf6 {[%clk 0:02:56.8]}
4. Bb5+ {[%clk 0:02:58.9]} 4... Bd7 {[%clk 0:02:56.3]} 5. Nc3 {[%clk 0:02:52.5]}
5... Bxb5 {[%clk 0:02:55.1]} 6. Nxb5 {[%clk 0:02:50.7]} 6... Nxd5 {[%clk
0:02:55.2]} 7. Ne5 {[%clk 0:02:39.2]} 7... Nf6 {[%clk 0:02:39.3]} 8. Qf3 {[%clk
0:02:27.1]} 8... Qb6 {[%clk 0:02:36.6]} 9. Qe2 {[%clk 0:02:16.6]} 9... e6 {[%clk
0:02:34]} 10. O-O {[%clk 0:01:49.6]} 10... Be7 {[%clk 0:02:29.4]} 11. a4 {[%clk
0:01:40.4]} 11... Nc6 {[%clk 0:02:10.6]} 12. c3 {[%clk 0:01:16.3]} 12... O-O
{[%clk 0:01:52.2]} 13. d3 {[%clk 0:01:11.5]} 13... Rad8 {[%clk 0:01:35]} 14. Nc4
{[%clk 0:00:58.6]} 14... Qa6 {[%clk 0:01:31.7]} 15. Bf4 {[%clk 0:00:38.1]} 15...
Nd5 {[%clk 0:01:27.8]} 16. Bd6 {[%clk 0:00:37]} 16... Bxd6 {[%clk 0:01:22.1]}
17. Ncxd6 {[%clk 0:00:29.8]} 17... Na5 {[%clk 0:01:07.2]} 18. Ne4 {[%clk
0:00:13.9]} 18... Qc6 {[%clk 0:00:44.9]} 19. Rfd1 {[%clk 0:00:12.2]} 19... a6
{[%clk 0:00:42.8]} 20. Na3 {[%clk 0:00:12.4]} 20... Nb3 {[%clk 0:00:40.2]} 21.
Rab1 {[%clk 0:00:09.8]} 21... Qxa4 {[%clk 0:00:39.7]} 22. Nc4 {[%clk 0:00:10.3]}
22... Qc6 {[%clk 0:00:30.6]} 23. Qf3 {[%clk 0:00:05.9]} 23... f5 {[%clk
0:00:25.2]} 24. Ng5 {[%clk 0:00:04.7]} 24... h6 {[%clk 0:00:24.6]} 25. Nh3
{[%clk 0:00:02.7]} 25... Ne7 {[%clk 0:00:19]} 26. Qg3 {[%clk 0:00:02.9]} 26...
Rf6 {[%clk 0:00:13.5]} 27. Ne5 {[%clk 0:00:02.3]} 27... Qc7 {[%clk 0:00:13.3]}
28. f4 {[%clk 0:00:02.7]} 28... b5 {[%clk 0:00:12.2]} 29. d4 {[%clk 0:00:02.5]}
29... cxd4 {[%clk 0:00:12.3]} 30. cxd4 {[%clk 0:00:02.3]} 30... Nxd4 {[%clk
0:00:12.9]} 31. Qf2 {[%clk 0:00:02.4]} 31... Qc5 {[%clk 0:00:10.5]} 32. Rbc1
{[%clk 0:00:02.2]} 32... Ne2+ {[%clk 0:00:10.6]} 33. Kf1 {[%clk 0:00:01.7]}
33... Rxd1+ {[%clk 0:00:10.8]} 34. Rxd1 {[%clk 0:00:01.3]} 34... Qxf2+ {[%clk
0:00:11]} 35. Kxf2 {[%clk 0:00:01.3]} 35... Nxf4 {[%clk 0:00:10]} 0-1